[Event "EYCC O18-ch 2024"]
[Site "Prague"]
[Date "2024.08.29"]
[Round "7.6"]
[White "Garcia Fernandez, Victor"]
[Black "Razafindratsima, Timothe"]
[Result "0-1"]
[ECO "E20"]
[WhiteElo "2313"]
[BlackElo "2457"]
[Annotator "TA"]
[PlyCount "96"]
[EventDate "2024.08.19"]
[EventType "swiss"]
[EventCountry "CZE"]
[SourceTitle "playchess.com"]
[Source "ChessBase"]
[SourceQuality "1"]
[TimeControl "5400+30"]

{[%evp 15,96,-18,-10,-22,0,0,0,0,14,9,12,4,6,7,4,16,10,9,11,17,21,29,25,25,27,0,0,0,10,0,0,0,0,0,0,0,0,-20,-5,-4,-11,-10,-7,-26,-26,-417,-404,-374,-341,-400,-392,-391,-384,-380,-365,-472,-277,-1479,-1404,-7461,-5093,-5302,-4553,-29965,-29970,-29970,-29973,-29973,-29974,-29974,-29974,-29973,-29974,-29977,-29978,-29980,-29981,-29981,-29982,-29982,-29983,-29984,-29985]} 1. d4 {[%emt 0:00:04]} Nf6 {[%emt 0:00:12]} 2. c4 {[%emt 0:00:05]} e6 {[%emt 0:00:09]} 3. Nc3 {[%emt 0:00:17]} Bb4 {[%emt 0:00:17]} 4. g3 {[%emt 0:00:39]} d5 {[%emt 0:01:04]} 5. Bg2 {[%emt 0:00:09]} O-O {[%emt 0:00:12]} 6. Nf3 {[%emt 0:00:10]} dxc4 {[%emt 0:00:24]} 7. O-O {[%emt 0:00:09]} Nc6 {[%emt 0:00:24]} 8. Re1 {[%emt 0:00:17]} Rb8 {[%emt 0:00:32]} 9. a3 {[%emt 0:00:09]} Ba5 {[%emt 0:00:38]} 10. Bg5 {[%emt 0:00:41][%cal Bc1g5,Bg5h4,Bh4e7,Be7c5][%mdl 32]} h6 {[%emt 0:06:01]} 11. Bh4 {[%emt 0:00:35] The position is equal.} e5 {[%emt 0:19:18]} 12. Nxe5 {[%emt 0:19:53]} ({Don't play} 12. dxe5 Qxd1 13. Raxd1 (13. Rexd1 $2 Bxc3 14. bxc3 Ne4 $19) 13... Nh7 $17) 12... Nxe5 {[%emt 0:04:35]} 13. dxe5 {[%emt 0:00:39]} Qxd1 {[%emt 0:00:41]} 14. Rexd1 {[%emt 0:11:50]} Ng4 {[%emt 0:00:02][%cal Og7g5] [#] Threatens to win with ...g5!} 15. Be7 {[%emt 0:15:59]} Re8 {[%emt 0:00:07]} 16. Bc5 {[%emt 0:00:08]} Bxc3 {[%emt 0:25:42]} 17. bxc3 {[%emt 0:00:16] Black should prevent f4.} Nxe5 {[%emt 0:01:12]} 18. Bxa7 {[%emt 0:00:40] This pair of bishops is nice.} Ra8 {[%emt 0:00:01][%cal Bb8a8,Ba8a5,Ba5e5][%mdl 32]} 19. Bd4 {[%emt 0:04:16]} Ra5 {[%emt 0:02:31]} 20. Bxe5 {[%emt 0:13:50]} Raxe5 {[%emt 0:00:07]} 21. e3 {[%emt 0:00:04]} Rb5 {[%emt 0:03:26]} 22. Bd5 {[%emt 0:02:58]} Rc5 {[%emt 0:09:48]} 23. Rd4 {[%emt 0:01:26][%cal Oa3a4]} c6 {[%emt 0:00:04]} 24. Bxc4 {[%emt 0:08:37]} (24. Rxc4 $2 {too greedy.} Rxd5 25. e4 Rd2 $19) 24... b5 {[%emt 0:00:03]} 25. Be2 {[%emt 0:00:05]} Rxc3 {[%emt 0:00:03]} 26. Rdd1 {[%emt 0:02:47]} Bh3 {[%emt 0:05:36]} 27. Rdc1 {[%emt 0:03:13]} Rxc1+ {[%emt 0:00:01]} 28. Rxc1 $11 {[%emt 0:00:07][%mdl 4096] Endgame. KRB-KRB} Ra8 {[%emt 0:00:02]} 29. Rxc6 {[%emt 0:03:36]} b4 {[%emt 0:01:55]} 30. Bf1 $2 {[%emt 0:00:51][%mdl 8192] Now White is beyond hope.} (30. a4 $1 $11) 30... Bxf1 $19 {[%emt 0:07:08]} 31. Kxf1 {[%emt 0:01:05]} bxa3 {[%emt 0:00:03] [#] Strongly threatening ...a2. KR-KR} ({Stronger than} 31... Rxa3 32. Rb6 $11) 32. Rc1 {[%emt 0:00:11]} a2 {[%emt 0:00:31]} 33. Ra1 {[%emt 0:00:02]} f5 {[%emt 0:00:06]} 34. Ke2 {[%emt 0:01:43]} Kf7 {[%emt 0:00:04]} 35. Kd2 {[%emt 0:02:50]} Ke6 {[%emt 0:04:22]} (35... Kf6 $142 36. f3 Ke5) 36. h4 $2 {[%emt 0:04:48]} (36. Kc3 Ke5 37. f3) 36... g5 {[%emt 0:01:24]} 37. hxg5 {[%emt 0:00:54]} hxg5 {[%emt 0:00:01]} 38. Kd3 {[%emt 0:02:05]} Kd5 {[%emt 0:02:41]} 39. f3 {[%emt 0:01:01]} g4 {[%emt 0:03:55] Black mates.} 40. Ke2 {[%emt 0:00:33]} gxf3+ {[%emt 0:01:18]} 41. Kxf3 {[%emt 0:00:01]} Ke5 {[%emt 0:00:21]} 42. Kf2 {[%emt 0:00:25]} Ke4 {[%emt 0:00:15]} 43. Ke2 {[%emt 0:00:18]} Ra7 {[%emt 0:00:57]} 44. Kf2 {[%emt 0:00:14]} Ra3 {[%emt 0:00:21]} 45. Kg2 {[%emt 0:00:59]} Kxe3 {[%emt 0:00:19]} 46. Kh3 {[%emt 0:00:29]} Ra4 {[%emt 0:00:34]} 47. Kg2 {[%emt 0:00:26]} Kd2 {[%emt 0:00:28]} 48. Kf3 {[%emt 0:00:43]} Kc2 {[%emt 0:00:07] Weighted Error Value: White=0.77/Black=0.07 (flawless) .  Loses game:     	White=1     	---        Mistake:       	White=1     	Black=1      Inaccurate:     	White=2     	---        OK:         	White=11    	Black=14     Best:        	White=2     	Black=4} 0-1

[Event "EYCC O18-ch 2024"]
[Site "Prague"]
[Date "2024.08.29"]
[Round "7.6"]
[White "Sachilaru, Alexandru"]
[Black "Torres Rebolledo, Victor"]
[Result "1-0"]
[ECO "B12"]
[WhiteElo "2255"]
[BlackElo "2184"]
[Annotator "RC"]
[PlyCount "51"]
[EventDate "2024.08.19"]
[EventType "swiss"]
[EventCountry "CZE"]
[SourceTitle "playchess.com"]
[Source "ChessBase"]
[SourceQuality "1"]
[TimeControl "5400+30"]

1. e4 {[%emt 0:00:05]} c6 {[%emt 0:00:06]} 2. d4 {[%emt 0:00:13]} d5 {[%emt 0:00:07]} 3. e5 {[%emt 0:00:23]} Bf5 {[%emt 0:00:13]} 4. g4 {[%emt 0:00:24]} Be4 {[%emt 0:00:45]} 5. f3 {[%emt 0:00:25]} Bg6 {[%emt 0:00:07]} 6. e6 {[%emt 0:00:39]} fxe6 {[%emt 0:04:46]} 7. h4 {[%emt 0:00:43]} h5 {[%emt 0:00:18]} 8. Bd3 {[%emt 0:01:03]} Bxd3 {[%emt 0:00:25]} 9. Qxd3 {[%emt 0:00:20]} Qd6 {[%emt 0:00:48]} 10. Bg5 {[%emt 0:05:30]} Nd7 {[%emt 0:05:12]} 11. Qg6+ {[%emt 0:00:48]} Kd8 {[%emt 0:00:28]} 12. Ne2 {[%emt 0:00:25]} Ngf6 {[%emt 0:07:54]} 13. Nd2 {[%emt 0:01:24]} e5 {[%emt 0:08:16]} 14. O-O-O {[%emt 0:06:49]} Ne4 {[%emt 0:07:02]} 15. Qf5 {[%emt 0:03:24]} Nxg5 {[%emt 0:11:32]} 16. hxg5 {[%emt 0:01:25]} g6 {[%emt 0:01:52]} 17. Qf7 {[%emt 0:10:10]} h4 {[%emt 0:02:03]} 18. Ne4 {[%emt 0:13:24]} Qb4 {[%emt 0:15:04]} 19. dxe5 {[%emt 0:02:53]} Nxe5 {[%emt 0:02:06]} 20. Rxd5+ {[%emt 0:03:59]} cxd5 {[%emt 0:00:09]} 21. Qxd5+ {[%emt 0:00:08]} Nd7 {[%emt 0:03:16]} 22. Rd1 {[%emt 0:00:43]} Ke8 {[%emt 0:00:06]} 23. Qxd7+ {[%emt 0:00:43]} Kf7 {[%emt 0:00:01]} 24. Nf4 {[%emt 0:02:57]} Qb6 {[%emt 0:06:08]} 25. Nd6+ {[%emt 0:00:20]} Kg7 {[%emt 0:00:12]} 26. Qe6 {[%emt 0:00:22]} 1-0

[Event "EYCC O18-ch 2024"]
[Site "Prague"]
[Date "2024.08.29"]
[Round "7.7"]
[White "Levin, Guy"]
[Black "Dehtiarov, Roman"]
[Result "1/2-1/2"]
[ECO "A05"]
[WhiteElo "2436"]
[BlackElo "2308"]
[Annotator "RC"]
[PlyCount "89"]
[EventDate "2024.08.19"]
[EventType "swiss"]
[EventCountry "CZE"]
[SourceTitle "playchess.com"]
[Source "ChessBase"]
[SourceQuality "1"]
[TimeControl "5400+30"]

1. Nf3 {[%emt 0:00:09]} Nf6 {[%emt 0:03:20]} 2. c4 {[%emt 0:00:11]} g6 {[%emt 0:00:12]} 3. g3 {[%emt 0:00:35]} Bg7 {[%emt 0:00:09]} 4. Bg2 {[%emt 0:00:03]} O-O {[%emt 0:00:17]} 5. O-O {[%emt 0:00:03]} d5 {[%emt 0:00:12]} 6. d4 {[%emt 0:07:03]} dxc4 {[%emt 0:00:27]} 7. Na3 {[%emt 0:00:06]} c3 {[%emt 0:00:08]} 8. bxc3 {[%emt 0:00:05]} c5 {[%emt 0:00:07]} 9. Ne5 {[%emt 0:04:24]} Nc6 {[%emt 0:01:49]} 10. Nxc6 {[%emt 0:11:34]} bxc6 {[%emt 0:00:09]} 11. Bxc6 {[%emt 0:03:09]} Bh3 {[%emt 0:00:41]} 12. Re1 {[%emt 0:01:45]} Nd5 {[%emt 0:20:43]} 13. Bxd5 {[%emt 0:02:36]} Qxd5 {[%emt 0:00:02]} 14. e4 {[%emt 0:00:11]} Qd7 {[%emt 0:06:06]} 15. Be3 {[%emt 0:06:11]} Rfd8 {[%emt 0:01:32]} 16. Nc2 {[%emt 0:06:00]} Rac8 {[%emt 0:08:40]} 17. Rc1 {[%emt 0:02:55]} cxd4 {[%emt 0:00:50]} 18. Nxd4 {[%emt 0:02:57]} Qb7 {[%emt 0:08:49]} 19. Qf3 {[%emt 0:05:02]} h5 {[%emt 0:03:29]} 20. e5 {[%emt 0:01:53]} Qxf3 {[%emt 0:04:47]} 21. Nxf3 {[%emt 0:00:03]} a6 {[%emt 0:00:18]} 22. Bd4 {[%emt 0:08:32]} Be6 {[%emt 0:00:54]} 23. Ra1 {[%emt 0:01:10]} Rb8 {[%emt 0:05:05]} 24. Ng5 {[%emt 0:08:07]} Bc4 {[%emt 0:02:46]} 25. Ne4 {[%emt 0:01:46]} Rb2 {[%emt 0:01:47]} 26. a4 {[%emt 0:00:21]} Rd5 {[%emt 0:02:07]} 27. Nc5 {[%emt 0:03:02]} g5 {[%emt 0:02:56]} 28. a5 {[%emt 0:01:33]} Rb5 {[%emt 0:04:38]} 29. Nxa6 {[%emt 0:00:34]} Rxa5 {[%emt 0:00:10]} 30. Nb4 {[%emt 0:03:29]} Rxa1 {[%emt 0:00:08]} 31. Rxa1 {[%emt 0:00:04]} Rd7 {[%emt 0:00:16]} 32. Ra8+ {[%emt 0:05:22]} Kh7 {[%emt 0:00:27]} 33. f4 {[%emt 0:00:06]} gxf4 {[%emt 0:02:11]} 34. gxf4 {[%emt 0:00:01]} Kg6 {[%emt 0:00:34]} 35. Kg2 {[%emt 0:02:57]} Bh6 {[%emt 0:01:21]} 36. Kf3 {[%emt 0:01:54]} Kf5 {[%emt 0:01:55]} 37. Rh8 {[%emt 0:03:02]} Bxf4 {[%emt 0:00:23]} 38. Rxh5+ {[%emt 0:00:55]} Kg6 {[%emt 0:00:01]} 39. Rh8 {[%emt 0:00:34]} Bd2 {[%emt 0:00:40]} 40. Rc8 {[%emt 0:01:45]} Be6 {[%emt 0:00:24]} 41. Rg8+ {[%emt 0:01:26]} Kf5 {[%emt 0:01:33]} 42. h4 {[%emt 0:01:03]} f6 {[%emt 0:00:53]} 43. Rg2 {[%emt 0:00:51]} Rxd4 {[%emt 0:01:18]} 44. cxd4 {[%emt 0:00:06]} Bxb4 {[%emt 0:00:04]} 45. Ke3 {[%emt 0:00:09]} 1/2-1/2

[Event "EYCC O18-ch 2024"]
[Site "Prague"]
[Date "2024.08.29"]
[Round "7.7"]
[White "Valiyev, Shahin"]
[Black "Dogias, Christos"]
[Result "1-0"]
[ECO "B46"]
[WhiteElo "2245"]
[BlackElo "2047"]
[Annotator "RC"]
[PlyCount "119"]
[EventDate "2024.08.19"]
[EventType "swiss"]
[EventCountry "CZE"]
[SourceTitle "playchess.com"]
[Source "ChessBase"]
[SourceQuality "1"]
[TimeControl "5400+30"]

1. e4 c5 2. Nf3 e6 3. d4 cxd4 4. Nxd4 Nc6 5. Nc3 a6 6. Nxc6 bxc6 7. Bd3 Qc7 8. O-O Nf6 9. Re1 d5 10. e5 Nd7 11. Bf4 Nc5 12. Qf3 a5 13. Qg3 Ba6 14. Ne2 h6 15. h4 g6 16. Nd4 Be7 17. Bxa6 Rxa6 18. Rad1 g5 19. Bc1 Ne4 20. Qd3 Rb6 21. f3 Ng3 22. h5 Bc5 23. Be3 Bxd4 24. Qxd4 Rb4 25. Qc3 g4 26. Kf2 Nf5 27. b3 gxf3 28. gxf3 Rh4 29. Rh1 Rxh1 30. Rxh1 Rg8 31. Rg1 Rxg1 32. Kxg1 Kd7 33. Kf2 f6 34. Bf4 c5 35. Bh2 d4 36. Qe1 c4 37. Qe4 d3 38. cxd3 c3 39. Bf4 fxe5 40. Bxe5 Qc5+ 41. d4 Qc8 42. Qc2 Qc6 43. a4 Qc8 44. Ke2 Qg8 45. Kd3 Qg5 46. Qxc3 Qxh5 47. Qc7+ Ke8 48. Qc8+ Ke7 49. Qb7+ Ke8 50. Kc4 Qh1 51. Kb5 Qe1 52. Qa8+ Ke7 53. Qxa5 Qe2+ 54. Kb6 Qxf3 55. Qa7+ Ke8 56. Qb8+ Kd7 57. Qc7+ Ke8 58. Qc8+ Ke7 59. Qb7+ Qxb7+ 60. Kxb7 1-0

[Event "EYCC O18-ch 2024"]
[Site "Prague"]
[Date "2024.08.29"]
[Round "7.8"]
[White "Bakija, Alan"]
[Black "Seidl, Jan"]
[Result "1/2-1/2"]
[ECO "A37"]
[WhiteElo "2171"]
[BlackElo "2276"]
[Annotator "RC"]
[PlyCount "123"]
[EventDate "2024.08.19"]
[EventType "swiss"]
[EventCountry "CZE"]
[SourceTitle "playchess.com"]
[Source "ChessBase"]
[SourceQuality "1"]
[TimeControl "5400+30"]

1. c4 {[%emt 0:00:02]} c5 {[%emt 0:00:10]} 2. Nf3 {[%emt 0:00:05]} Nc6 {[%emt 0:00:13]} 3. Nc3 {[%emt 0:00:04]} g6 {[%emt 0:00:07]} 4. g3 {[%emt 0:00:20]} Bg7 {[%emt 0:00:07]} 5. Bg2 {[%emt 0:00:03]} e5 {[%emt 0:00:27]} 6. O-O {[%emt 0:00:11]} d6 {[%emt 0:00:13]} 7. a3 {[%emt 0:00:34]} a5 {[%emt 0:01:13]} 8. Ne1 {[%emt 0:00:55]} Be6 {[%emt 0:00:19]} 9. d3 {[%emt 0:00:04]} Nge7 {[%emt 0:00:15]} 10. Nc2 {[%emt 0:00:05]} d5 {[%emt 0:01:23]} 11. cxd5 {[%emt 0:00:04]} Nxd5 {[%emt 0:00:06]} 12. Ne3 {[%emt 0:00:04]} Nb6 {[%emt 0:00:33]} 13. Bd2 {[%emt 0:00:29]} O-O {[%emt 0:05:27]} 14. Ne4 {[%emt 0:00:06]} Qe7 {[%emt 0:23:44]} 15. Rc1 {[%emt 0:00:05]} Nd7 {[%emt 0:00:03]} 16. Nc4 {[%emt 0:00:06]} Ra6 {[%emt 0:24:55]} 17. Ned6 {[%emt 0:15:23]} Rb8 {[%emt 0:00:58]} 18. Nb5 {[%emt 0:00:34]} Nb6 {[%emt 0:02:50]} 19. b3 {[%emt 0:11:51]} Nxc4 {[%emt 0:04:40]} 20. bxc4 {[%emt 0:00:09]} Nd4 {[%emt 0:00:25]} 21. Nc3 {[%emt 0:07:08]} Qd8 {[%emt 0:04:15]} 22. Rb1 {[%emt 0:02:10]} Ra7 {[%emt 0:01:26]} 23. e3 {[%emt 0:02:04]} Nf5 {[%emt 0:00:37]} 24. Nb5 {[%emt 0:06:58]} Ra6 {[%emt 0:01:02]} 25. Qc2 {[%emt 0:00:06]} Nd6 {[%emt 0:01:36]} 26. Nxd6 {[%emt 0:12:56]} Rxd6 {[%emt 0:01:09]} 27. Bxb7 {[%emt 0:10:35]} Bf5 {[%emt 0:00:37]} 28. Bd5 {[%emt 0:02:34]} Bh3 {[%emt 0:00:18]} 29. Rxb8 {[%emt 0:00:11]} Qxb8 {[%emt 0:00:06]} 30. Rb1 {[%emt 0:00:10]} Rb6 {[%emt 0:00:04]} 31. Rxb6 {[%emt 0:00:29]} Qxb6 {[%emt 0:00:05]} 32. a4 {[%emt 0:03:10]} Bf6 {[%emt 0:01:26]} 33. f3 {[%emt 0:01:25]} Bd7 {[%emt 0:00:06]} 34. Kf2 {[%emt 0:03:40]} Kf8 {[%emt 0:01:17]} 35. Bc3 {[%emt 0:00:11]} Kg7 {[%emt 0:01:31]} 36. Qd2 {[%emt 0:01:47]} Bxa4 {[%emt 0:00:16]} 37. Bxa5 {[%emt 0:00:10]} Qb1 {[%emt 0:00:15]} 38. Kg2 {[%emt 0:00:59]} h5 {[%emt 0:00:07]} 39. Bc3 {[%emt 0:00:19]} Bd7 {[%emt 0:04:15]} 40. Qb2 {[%emt 0:09:17]} Qxd3 {[%emt 0:00:50]} 41. Bxe5 {[%emt 0:03:03]} Bh3+ {[%emt 0:02:38]} 42. Kxh3 {[%emt 0:00:07]} Qf1+ {[%emt 0:00:05]} 43. Qg2 {[%emt 0:00:03]} Qxg2+ {[%emt 0:00:04]} 44. Kxg2 {[%emt 0:00:11]} Bxe5 {[%emt 0:00:02]} 45. f4 {[%emt 0:03:44]} Bb2 {[%emt 0:00:37]} 46. Kf3 {[%emt 0:00:11]} f6 {[%emt 0:01:29]} 47. g4 {[%emt 0:01:11]} hxg4+ {[%emt 0:00:06]} 48. Kxg4 {[%emt 0:00:04]} f5+ {[%emt 0:00:51]} 49. Kg3 {[%emt 0:00:33]} Kf6 {[%emt 0:00:44]} 50. h4 {[%emt 0:00:50]} Bc3 {[%emt 0:00:45]} 51. Kf2 {[%emt 0:00:17]} Bb2 {[%emt 0:01:03]} 52. Bc6 {[%emt 0:01:19]} Bc3 {[%emt 0:00:51]} 53. Be8 {[%emt 0:00:05]} Bb2 {[%emt 0:00:24]} 54. Kg3 {[%emt 0:01:56]} Bc3 {[%emt 0:00:30]} 55. Kf2 {[%emt 0:00:53]} Bb2 {[%emt 0:00:08]} 56. Kf3 {[%emt 0:01:18]} Bc3 {[%emt 0:00:39]} 57. e4 {[%emt 0:00:05]} fxe4+ {[%emt 0:00:47]} 58. Kxe4 {[%emt 0:00:05]} Be1 {[%emt 0:00:43]} 59. Kd5 {[%emt 0:01:03]} Bxh4 {[%emt 0:00:20]} 60. Bxg6 {[%emt 0:00:55]} Kxg6 {[%emt 0:01:06]} 61. Kxc5 {[%emt 0:00:07]} Kf5 {[%emt 0:00:30]} 62. Kd6 {[%emt 0:00:29]} 1/2-1/2

[Event "EYCC O18-ch 2024"]
[Site "Prague"]
[Date "2024.08.29"]
[Round "7.8"]
[White "Kusiak, Mateusz"]
[Black "Elmi, Saad Abobaker"]
[Result "1/2-1/2"]
[ECO "B41"]
[WhiteElo "1887"]
[BlackElo "2383"]
[Annotator "RC"]
[PlyCount "105"]
[EventDate "2024.08.19"]
[EventType "swiss"]
[EventCountry "CZE"]
[SourceTitle "playchess.com"]
[Source "ChessBase"]
[SourceQuality "1"]
[TimeControl "5400+30"]

1. e4 {[%emt 0:03:56]} c5 {[%emt 0:00:19]} 2. Nf3 {[%emt 0:00:31]} e6 {[%emt 0:00:59]} 3. d4 {[%emt 0:00:36]} cxd4 {[%emt 0:00:07]} 4. Nxd4 {[%emt 0:00:06]} a6 {[%emt 0:00:31]} 5. g3 {[%emt 0:01:43]} d5 {[%emt 0:01:35]} 6. Nb3 {[%emt 0:01:44]} Nf6 {[%emt 0:01:25]} 7. exd5 {[%emt 0:00:07]} exd5 {[%emt 0:00:11]} 8. Bg2 {[%emt 0:02:02]} Nc6 {[%emt 0:01:04]} 9. O-O {[%emt 0:00:13]} Be7 {[%emt 0:01:14]} 10. Nc3 {[%emt 0:02:41]} Bg4 {[%emt 0:06:00]} 11. Qd3 {[%emt 0:08:41]} d4 {[%emt 0:06:20]} 12. Bxc6+ {[%emt 0:03:48]} bxc6 {[%emt 0:00:05]} 13. Qxd4 {[%emt 0:01:34]} O-O {[%emt 0:07:16]} 14. Re1 {[%emt 0:10:45]} Qc7 {[%emt 0:10:24]} 15. Bf4 {[%emt 0:00:12]} Qb7 {[%emt 0:00:06]} 16. Na5 {[%emt 0:08:57]} Qxb2 {[%emt 0:03:36]} 17. Rab1 {[%emt 0:21:57]} Qa3 {[%emt 0:00:56]} 18. Nxc6 {[%emt 0:00:56]} Bc5 {[%emt 0:00:45]} 19. Qd2 {[%emt 0:00:38]} Bxf2+ {[%emt 0:09:11]} 20. Kxf2 {[%emt 0:01:19]} Qc5+ {[%emt 0:00:07]} 21. Nd4 {[%emt 0:00:07]} Rad8 {[%emt 0:05:21]} 22. Be5 {[%emt 0:00:27]} Nd7 {[%emt 0:00:39]} 23. Na4 {[%emt 0:03:19]} Qd5 {[%emt 0:01:14]} 24. Bc7 {[%emt 0:04:24]} Rc8 {[%emt 0:01:27]} 25. Nb6 {[%emt 0:00:12]} Nxb6 {[%emt 0:08:45]} 26. Bxb6 {[%emt 0:00:06]} Qxa2 {[%emt 0:01:41]} 27. Kg1 {[%emt 0:03:16]} Qd5 {[%emt 0:01:19]} 28. Qa5 {[%emt 0:01:22]} Qa8 {[%emt 0:01:17]} 29. Qg5 {[%emt 0:00:40]} Bh3 {[%emt 0:00:06]} 30. Re2 {[%emt 0:00:09]} Rfe8 {[%emt 0:00:22]} 31. Rbe1 {[%emt 0:00:09]} h6 {[%emt 0:01:33]} 32. Qd2 {[%emt 0:01:35]} Rxe2 {[%emt 0:00:38]} 33. Rxe2 {[%emt 0:00:37]} Rb8 {[%emt 0:00:45]} 34. Qe1 {[%emt 0:02:41]} Qd5 {[%emt 0:03:01]} 35. c4 {[%emt 0:03:05]} Qxc4 {[%emt 0:00:53]} 36. Re8+ {[%emt 0:00:02]} Rxe8 {[%emt 0:00:11]} 37. Qxe8+ {[%emt 0:00:30]} Kh7 {[%emt 0:00:09]} 38. Qe2 {[%emt 0:00:00]} Qb4 {[%emt 0:01:34]} 39. Ba7 {[%emt 0:00:47]} a5 {[%emt 0:01:39]} 40. Nc2 {[%emt 0:00:34]} Qb1+ {[%emt 0:01:26]} 41. Ne1 {[%emt 0:00:06]} Bf5 {[%emt 0:01:24]} 42. Bd4 {[%emt 0:01:09]} a4 {[%emt 0:00:28]} 43. Bb2 {[%emt 0:01:29]} f6 {[%emt 0:01:25]} 44. Kf2 {[%emt 0:00:06]} Qa2 {[%emt 0:00:31]} 45. Bc1 {[%emt 0:02:31]} Qb1 {[%emt 0:01:44]} 46. Qe3 {[%emt 0:01:47]} Qa2+ {[%emt 0:01:33]} 47. Kg1 {[%emt 0:00:07]} Qc4 {[%emt 0:01:21]} 48. Ba3 {[%emt 0:00:39]} Be4 {[%emt 0:01:10]} 49. Nf3 {[%emt 0:02:37]} Qc2 {[%emt 0:00:39]} 50. Ne1 {[%emt 0:01:36]} Qc4 {[%emt 0:00:09]} 51. Kf2 {[%emt 0:02:25]} Qd5 {[%emt 0:00:50]} 52. Kg1 {[%emt 0:00:45]} Qc4 {[%emt 0:00:09]} 53. Kf2 {[%emt 0:00:38]} 1/2-1/2

[Event "EYCC O18-ch 2024"]
[Site "Prague"]
[Date "2024.08.29"]
[Round "7.9"]
[White "Macias Pino, Diego"]
[Black "Xhembulla, Aleksander"]
[Result "1-0"]
[ECO "E06"]
[WhiteElo "2477"]
[BlackElo "2201"]
[Annotator "TA"]
[PlyCount "63"]
[EventDate "2024.08.19"]
[EventType "swiss"]
[EventCountry "CZE"]
[SourceTitle "playchess.com"]
[Source "ChessBase"]
[SourceQuality "1"]
[TimeControl "5400+30"]

{[%evp 13,63,12,25,8,19,0,44,32,39,0,0,0,0,0,13,0,0,0,0,0,0,0,0,0,9,38,19,-12,0,0,0,0,0,0,0,-101,56,-22,9,22,358,345,745,725,2585,2608,2130,2007,2060,2084,1479,1440]} 1. d4 {[%emt 0:00:02]} Nf6 {[%emt 0:00:09]} 2. c4 {[%emt 0:00:03]} e6 {[%emt 0:00:05]} 3. Nf3 {[%emt 0:00:02]} d5 {[%emt 0:00:06]} 4. g3 {[%emt 0:00:03]} Be7 {[%emt 0:00:05]} 5. Bg2 {[%emt 0:00:03]} O-O {[%emt 0:00:08]} 6. O-O {[%emt 0:00:04]} dxc4 {[%emt 0:00:05]} 7. Qc2 {[%emt 0:00:03]} b5 {[%emt 0:00:19]} 8. a4 {[%emt 0:00:06]} b4 {[%emt 0:00:04]} 9. Nfd2 {[%emt 0:00:27]} (9. Qxc4 Ba6 10. Qc2 Nbd7 $15) 9... Nd5 {[%emt 0:00:12]} 10. Nxc4 {[%emt 0:01:26] White is slightly better.} (10. Qxc4 Ba6 11. Qc2 c5 (11... Bxe2 12. Re1 $15) 12. dxc5 Nd7 $19) 10... c5 {[%emt 0:00:06]} 11. e4 {[%emt 0:12:35]} Nb6 {[%emt 0:00:14]} 12. Nxb6 {[%emt 0:00:39]} axb6 {[%emt 0:01:10]} 13. d5 {[%emt 0:00:11] Dodges Nc6} Bb7 {[%emt 0:31:05][%cal Re6d5]} 14. Bf4 {[%emt 0:10:18][%cal Od5d6]} exd5 {[%emt 0:02:43]} 15. exd5 {[%emt 0:00:15][%cal Od5d6] [#] Threatens to win with d6!} Bf6 {[%emt 0:00:09]} (15... Bxd5 $2 16. Rd1 Nc6 17. Rxd5 $18 (17. Bxd5 Nd4 $18)) 16. Be3 {[%emt 0:06:33]} Re8 {[%emt 0:14:41]} (16... Bxd5 $2 17. Rd1 Nc6 (17... Bd4 $2 18. Bxd4 cxd4 19. Rxd4 $18) 18. Rxd5 $18 (18. Bxd5 Qd7 $18)) 17. Rd1 {[%emt 0:02:02]} Nd7 {[%emt 0:02:29]} 18. Nd2 {[%emt 0:04:17][%cal Bb1d2,Bd2e4,Be4g5][%mdl 32]} Rc8 {[%emt 0:04:08]} 19. Ne4 {[%emt 0:03:12]} Be5 {[%emt 0:01:02] Against Nd6} 20. d6 {[%emt 0:03:45]} Bc6 {[%emt 0:05:37]} (20... Bxb2 $2 21. Ng5 g6 22. Bxb7 $18 (22. Qxb2 Bxg2 23. Kxg2 Rxe3 $16)) 21. Ng5 {[%emt 0:05:29]} g6 $1 {[%emt 0:00:19]} 22. Bxc6 {[%emt 0:10:00]} Rxc6 {[%emt 0:00:05]} 23. Qc4 $40 {[%emt 0:00:14][%mdl 128] White has some attack.} Qf6 {[%emt 0:09:15]} 24. Rd2 {[%emt 0:02:26] [#]} (24. Qb5 $11 Rec8 (24... Rxd6 $2 25. Ne4 $18) 25. a5 (25. Ne4 $2 Qf5 $19)) 24... Rec8 $2 {[%emt 0:08:29]} (24... Rxd6 $2 25. Ne4 Qe7 26. Nxd6 Bxd6 27. Qd5 $18) (24... Bxb2 25. Rxb2 h6 26. Nxf7 Qxf7 27. Rxb4) (24... Bxd6 $2 25. Qd5 Ne5 26. f4 $18) (24... h6 $1 $17 {[%cal Rh6g5]} 25. Qg4 (25. Ne4 $2 Qe6 $19) 25... Rd8 (25... Rxd6 26. Ne4 $11)) 25. h4 {[%emt 0:08:48]} ({Better is} 25. Ne4 $14 Qf5 26. Rd5) 25... h6 {[%emt 0:05:07]} (25... Rxd6 $2 26. Ne4 Qe7 27. Nxd6 Bxd6 28. Bg5 $18 (28. Qd5 Ne5 $18)) 26. Ne4 {[%emt 0:00:33][%csl LRf6,LRh6]} Qf3 {[%emt 0:00:41][%mdl 8192] This move loses the game for Black.} (26... Qf5 $1 $11 27. Rd5 (27. Bxh6 Bd4 $11) 27... Nf6 28. Nxf6+ Qxf6) 27. Bxh6 $18 {[%emt 0:02:13]} Bd4 $2 {[%emt 0:00:31]} (27... Qf5 28. Rd5 Qg4) 28. Rxd4 {[%emt 0:01:35][%cal Oa1e1] Hoping for Re1! White is clearly winning.} cxd4 {[%emt 0:00:05]} 29. Qxd4 {[%emt 0:00:22]} f6 {[%emt 0:01:47]} 30. Qd5+ {[%emt 0:00:11]} ({Inferior is} 30. Qxb4 g5 31. Nc3 (31. hxg5 $2 {is the wrong capture.} Rc1+ $19) 31... gxh4 32. Qxh4 Rxd6 $11) 30... Kh8 {[%emt 0:00:30]} 31. Qf7 {[%emt 0:00:47][%csl LRd7,LRg6]} Rg8 {[%emt 0:01:11] Repels Qg7+} 32. Ng5 {[%emt 0:00:10] Weighted Error Value: White=0.15 (very precise) /Black=0.32.  Loses game:     	---       	Black=1      Mistake:       	White=2     	Black=2      Inaccurate:     	White=2     	Black=3      OK:         	White=10    	Black=7      Best:        	White=3     	---        Strong:       	---       	Black=1} 1-0